{"text_format":"1","workbook":"xlsx","n_sheets":7,"sheets":["Accueil","COF","Utilitaire","Validation","détail des projets","indicateurs quantitatifs","Commentaires"],"not_rendered":{"charts":0,"images":14,"macros":1,"external_links":0,"defined_names":934,"comments":5,"pivot_tables":0},"unopened":[],"bounds":{"document_bytes":16777216,"sheet_cells":100000,"rows_first":2000,"rows_last":500,"rows_between":2000,"halvings":0,"cell_chars":16384,"cell_head_chars":4096},"cells_cut":0,"cells_raw":0,"read":"whole","date_system":"1900"}

{"sheet":"Accueil","index":0,"n_rows":74,"n_cols":13,"rows_kept":74,"cut":false,"hidden":false,"merged":[[58,1,58,2],[58,3,58,11],[18,1,18,3],[24,1,24,13],[16,1,16,13],[17,1,17,13],[19,1,19,13],[20,1,20,13],[57,3,57,11],[54,4,54,13],[25,1,25,13],[73,1,73,2],[73,3,73,4],[54,1,54,2],[56,1,56,2],[56,3,56,11],[57,1,57,2],[55,1,55,2],[67,10,67,11],[72,1,72,3],[72,4,72,8],[72,9,72,11],[65,10,65,11],[62,3,62,4],[62,10,62,11],[66,1,66,2],[65,1,65,2],[66,10,66,11],[66,12,66,13],[62,1,62,2],[66,3,66,4],[66,7,66,8],[65,12,65,13],[65,3,65,4],[65,5,65,6],[65,7,65,8],[66,5,66,6],[72,12,72,13],[67,1,67,2],[67,3,67,4],[67,5,67,6],[67,7,67,8],[67,12,67,13],[1,5,3,10],[4,5,5,10],[55,3,55,11],[12,1,12,7],[52,4,52,13],[51,4,51,13],[53,4,53,13],[51,1,51,2],[52,1,52,2],[53,1,53,2],[15,1,15,13],[21,1,21,13],[22,1,22,13],[23,1,23,13],[14,1,14,13],[26,1,26,13]]}
[]
[null,null,null,null,null,"EXERCICES DE SUIVI DU FONDS VERT"]
[]
[]
[null,null,null,null,null,"2018-12-01"]
[]
[]
[]
[]
[null,"Bienvenue dans votre fiche de suivi du Plan d'action 2013-2020 sur les changements climatiques!"]
[]
[]
[null,"Indications spécifiques à l'exercice de décembre 2018"]
[null,"Date limite :","2019-01-14"]
[null,"→ Les informations doivent être en date du 2018-09-30"]
[null,"→ Veuillez utiliser l'outil de validation sur votre fiche avant de la retourner. Un bouton à cet effet a été ajouté dans les différents onglets."]
[null,"→ Veuillez garder la fiche en format xlsm afin de pouvoir profiter des nouveaux outils conviviaux."]
[null,"→ Besoin d'assistance? Veuillez écrire à l'adresse suivante en spécifiant votre question et vos coordonnées :"]
[null,"direction.executive@cgfv.gouv.qc.ca"]
[null,"→ Avant de débuter l'exercice, veuillez vérifier et compléter au besoin l'information contenue dans la page d'accueil."]
[null,"→ Toute information confidentielle, en vertu d'un contrat ou d'une entente, doit être saisie en bleu."]
[null,"→ La fiche de suivi en format Word doit également être mise à jour. Si aucune modification n'est requise, il est néanmoins nécessaire de mettre à jour les sections Date de mise à jour de la fiche se situant au haut et au bas de la fiche."]
[null,"→ De nouvelles informations sont à saisir à l'onglet Indicateurs quantitatifs, suite aux ajustements apportés à celui-ci."]
[null,"→ Veuillez préciser à la page d'accueil le programme rattaché à l'action, lorsqu'applicable. Le cas échéant, veuillez transmettre le cadre normatif officiel du programme au moment de la retransmission de la fiche de suivi."]
[null,"→ ATTENTION! Copier-coller des informations à partir d'un document Word verrouille les cellules concernées. Pour pouvoir à nouveau écrire et modifier le format de ces cellules, veuillez fermer et ouvrir à nouveau la fiche."]
[null,"→ ATTENTION! Les cellules contenant du texte sont limitées à 250 caractères. Les textes trop longs sont écrits en rouge puisqu'ils ont été tronqués. Veuillez reformuler ces instances."]
[null,"à ATTENTION! Il est important de remplir la colonne Coût/tonne estimé de l'onglet Détail des projets lorsqu'applicable"]
[]
[]
[]
[]
[]
[]
[]
[]
[]
[]
[]
[]
[]
[]
[]
[]
[]
[]
[]
[]
[]
[]
[null,"Avant de commencer, veuillez vérifier et corriger au besoin les informations indiquées dans l'encadré ci-dessous:"]
[]
[null,"Priorité :",null,11,"Favoriser la réduction de GES reliés aux opérations de l'administration publique"]
[null,"Action :",null,"11.1","Bilan carbone de l'administration publique"]
[null,"Sous-action :",null,"11.1.2","Bilan Carbone"]
[null,"Libellé usuel :",null,"11.1.2","Bilan Carbone"]
[null,"Programme :",null,"Non applicable"]
[null,"Nom du programme :"]
[null,"Statut de l'action :",null,"abandonnée"]
[null,"Raison du statut de l'action :",null,"Les objectifs de l'action 11.1.seront poursuivis via les sous actions 11.1.1 et 11.1.3"]
[]
[]
[]
[null,"Mise à jour de la fiche le :",null,"2019-01-15"]
[]
[]
[null,"Ministère porteur :",null,"MELCC",null,"Chargé de projet :",null,"Denis Boutin",null,null,"Part de financement par le Fonds vert :"]
[null,"Responsable ministériel :",null,"Catherine Gauthier",null,null,null,null,null,null,"Date de lancement de l'action :"]
[null,"Direction responsable :",null,"DPC-DGECERE",null,"Budget 2013-2020 (M$) :",null,4.8239999999999998,null,null,"Date de fin de l'action :",null,"2020-12-31"]
[]
[]
[]
[]
[null,"Personne ressource pour le CGFV :",null,null,"Chantal Rainville",null,null,null,null,"Tél. :",null,null,"poste 4076"]
[null,"Informations en date du :",null,"2018-09-30"]

{"sheet":"COF","index":1,"n_rows":45,"n_cols":26,"rows_kept":45,"cut":false,"hidden":false,"merged":[[43,1,43,13],[44,1,44,20],[21,1,22,6],[21,7,22,13],[32,1,32,6],[39,1,39,20],[41,1,41,19],[42,1,42,13],[10,21,10,22],[10,25,10,26],[11,1,11,2],[12,5,12,15],[12,16,12,17],[12,18,12,19],[10,1,10,2],[10,3,10,4],[10,5,10,6],[10,15,10,16],[10,18,10,19],[9,1,9,2],[9,3,9,4],[9,5,9,6],[9,15,9,16],[9,18,9,19],[8,1,8,2],[8,3,8,4],[8,16,8,17],[8,18,8,19],[8,21,8,22],[8,25,8,26],[6,9,6,10],[6,11,6,12],[6,16,6,17],[6,18,6,19],[7,1,7,2],[7,3,7,4],[7,5,7,6],[7,16,7,17],[7,18,7,19],[6,7,6,8],[1,6,1,16],[2,6,2,16],[3,1,3,2],[4,1,4,2],[5,1,5,2],[6,1,6,2],[6,5,6,6]]}
[]
[null,null,null,null,null,null,{"$f":"Accueil!F2","v":"EXERCICES DE SUIVI DU FONDS VERT"}]
[null,null,null,null,null,null,"Prévisions financières"]
[null,"Priorité :",null,11]
[null,"Action:",null,"11.1"]
[null,"Sous-action:",null,"11.1.2","11.1.2 Bilan Carbone"]
[null,"Numéro de programme",null,14944,52045,"PSA",null,{"$f":"P7","v":1810018},null,"Projet",null,null,null,null,null,1810018]
[null,"Mise à jour de la fiche le:"]
[null,"Ministère porteur:",null,"MELCC"]
[null,"Responsable ministériel:",null,"Catherine Gauthier"]
[null,"Chargé de projet:",null,"Denis Boutin",null,"Budget 2013-2020:",null,null,null,null,null,null,null,null,null,{"$f":"Accueil!H68*1000000","v":4824000}]
[null,"Unité Administrative (UA)",null,1811711,"Direction des politiques climatiques"]
[null,"Personne ressource pour la DGRFM:",null,"Nina Michèle Tchetgna"]
[]
[]
[]
[]
[]
[]
[]
[]
[null,"SECTION 1 - SOMMAIRE - CONSOLIDATION DES ORGANISMES ET DES FONDS (COF)",null,null,null,null,null,"Combinaison comptable budget",null,null,null,null,null,null,"2013-2014","2014-2015","2015-2016","2016-2017","2017-2018","2018-2019","2019-2020","2020-2021","2021-2022","2022-2023","2023-2024","TOTAL"]
[null,null,null,null,null,null,null,null,null,null,null,null,null,null,"Réel","Réel","Réel","Réel","Réel","Probable","Prévu","Prévu","Prévu","Prévu","Prévu"]
[null,"Dépenses"]
[null,"1.1 Rémunération",null,null,null,null,null,{"$f":"IF($D$4=\"Fonds de protection de l'environnement et des milieux hydriques\",784,836)","v":836},{"$f":"IF(B25=\"1.2 Contribution de l'employeur\",\"1810010\",$D$12)","v":1811711},{"$f":"500012","v":500012},{"$f":"IF($B$24=\"Revenu\",0,900)","v":900},{"$f":"IF(OR(B25=\"1.1 Rémunération\",B25=\"1.2 Contribution de l'employeur\",B25=\"1.3 Immobilisations\",B25=\"1.4 Fonctionnement\",B25=\"1.6 Amortissement\"),$D$7,$E$7)","v":14944},{"$f":"IF($P$7=\"\",1000000,$P$7)","v":1810018},{"$f":"IF($L$7=\"\",100000000,$L$7)","v":100000000},0,0,0,0,0,0,0,0,0,0,null,{"$f":"SUM(O25:Y25)","v":0}]
[null,"1.2 Contribution de l'employeur",null,null,null,null,null,{"$f":"IF($D$4=\"Fonds de protection de l'environnement et des milieux hydriques\",784,836)","v":836},{"$f":"IF(B26=\"1.2 Contribution de l'employeur\",\"1810010\",$D$12)","v":"1810010"},501002,{"$f":"IF($B$24=\"Revenu\",0,900)","v":900},{"$f":"IF(OR(B26=\"1.1 Rémunération\",B26=\"1.2 Contribution de l'employeur\",B26=\"1.3 Immobilisations\",B26=\"1.4 Fonctionnement\",B26=\"1.6 Amortissement\"),$D$7,$E$7)","v":14944},1810018,{"$f":"IF($L$7=\"\",100000000,$L$7)","v":100000000},{"$f":"O25*R38","v":0},{"$f":"P25*$S$38","v":0},{"$f":"Q25*$S$38","v":0},0,0,{"$f":"T25*$T$38","v":0},{"$f":"U25*$U$38","v":0},{"$f":"V25*$U$38","v":0},0,0,0,0]
[null,"1.3 Immobilisations",null,null,null,null,null,836,1811711,180710,900,14944,1810018,100000000,0,0,0,0,0,0,0,0,0,0,null,0]
[null,"1.4 Fonctionnement",null,null,null,null,null,836,1811711,510012,900,14944,1810018,100000000,0,0,0,0,0,0,72500,72500,0,0,null,145000]
[null,"1.5 Subventions et autres transferts de fonds",null,null,null,null,null,836,1811711,{"$error":"#REF!"},900,52045,1810018,100000000,{"$f":"O30+O31","v":0},{"$f":"P30+P31","v":0},{"$f":"Q30+Q31","v":0},0,1452,0,0,0,0,0,0,1452]
[null,"1.5.1 - Inclus au périmètre comptable (apparentés)",null,null,null,null,null,836,1811711,"624002a",900,52045,1810018,100000000,0,0,0,0,1452,0,null,0,0,0,null,1452]
[null,"1.5.2 - Hors périmètre comptable (non apparentés)",null,null,null,null,null,836,1811711,"624002na",900,52045,1810018,100000000,0,0,0,0,0,0,0,0,0,0,null,0]
[null,"TOTAL",null,null,null,null,null,null,null,null,null,null,null,null,{"$f":"O25+O26+O27+O28+O29","v":0},{"$f":"P25+P26+P27+P28+P29","v":0},{"$f":"Q25+Q26+Q27+Q28+Q29","v":0},{"$f":"R25+R26+R27+R28+R29","v":0},{"$f":"S25+S26+S27+S28+S29","v":1452},0,{"$f":"U25+U26+U27+U28+U29","v":72500},72500,0,{"$f":"X25+X26+X27+X28+X29","v":0},{"$f":"Y25+Y26+Y27+Y28+Y29","v":0},146452]
[null,"Réservé au MELCC- DGRFM: "]
[null,"1.6 Amortissement",null,null,null,null,null,836,1811711,612200,900,14944,{"$f":"IF($P$7=\"\",1000000,$P$7)","v":1810018},100000000,null,null,null,0,null,null,null,null,null,null,null,{"$f":"SUM(P34:X34)","v":0}]
[]
[]
[null,null,null,null,null,null,null,null,null,null,null,null,null,null,null,null,null,"2016-2017","2017-2018","2018-2019","2019-2020","2020-2021","2021-2022"]
[null,"Taux annuel de contribution de l'employeur (%)",null,null,null,null,null,null,null,null,null,null,null,null,null,null,null,0.123,0.123,0.1212,0.1217]
[]
[null," Instructions spécifiques à l'exercice de janvier 2019"]
[null,"Date limite:"," 2019-01-14"]
[null,"- Les prévisions doivent tenir compte de votre capacité réelle de mise en œuvre des actions"]
[null,"- Veuillez réviser et compléter les cases jaunes"]
[null,"- Gardez la fiche en format excel"]
[null,"- Pour toutes questions en cours d'exercice, veuillez écrire un courriel à l'adresse suivante: FondsVert@environnement.gouv.qc.ca en spécifiant la question et le numéro de téléphone auquel nous pouvons vous rejoindre pour y répondre"]

{"sheet":"Utilitaire","index":2,"n_rows":49,"n_cols":11,"rows_kept":49,"cut":false,"hidden":true,"merged":[[15,1,15,5],[15,8,15,9]]}
[]
[]
[null,"Mot de passe:","!1320PACC","Fiche verrouillée:","Oui - diffusion en ligne"]
[null,"Fiche validée:","Non"]
[null,"GES attendu:","Non"]
[null,"Feuille accueil complètement remplie:","Non","Exercice de suivi:","2018-12-01"]
[null,"Statut action:",{"$f":"Accueil!D58","v":"abandonnée"}]
[null,"Feuille Utilitaire visible:","Non","Titre des Onglets:","PLAN D'ACTION 2013-2020 SUR LES CHANGEMENTS CLIMATIQUES"]
[null,"Dernière ligne de la zone de défilement de l'onglet détail des projets:",55]
[null,"nombre d'indicateurs approuvés:","0"]
[null,"Secteur:","PACC 2013-2020"]
[null,"Numéro de séquence de l'action:",11.012]
[]
[]
[null,"Listes Déroulantes"]
[null,"détail des projets",null,null,null,null,"indicateurs quantitatifs","DRFM COF","Accueil"]
[null,"Région Administrative","Statut","Classification","Type d'émissions","Info GES","Type d'indicateur","Exercice de suivi","Statut de l'action","Programmes","Fiche verrouillée"]
[null,"99-toutes les régions","AC-Actif","SU-Subvention","QC-Québec","Oui","minimum à atteindre","2013-2014-1","non démarrée","Non applicable","Oui - partenaire"]
[null,"01-Bas-Saint-Laurent","TE-Terminé","CF-Contrat fonctionnement","HQ-Hors-Québec","Non","maximum à ne pas dépasser","2013-2014-2","en élaboration","Autre programme","Oui - diffusion en ligne"]
[null,"02-Saguenay- Lac-Saint-Jean","AT-En attente","CI-Contrat immobilisation","ND-Non distingué",null,"binaire","2014-2015-1","en cours","Action-Climat Québec ","Non - BGFV"]
[null,"03-Capitale-Nationale","SU-Suspendu","CP-Contrat service professionnel",null,null,null,"2014-2015-2","terminée","Biomasse forestière résiduelle"]
[null,"04-Mauricie ","AN-Annulé","CT-Contrat service technique",null,null,null,"2015-2016-1","en suspens","Branché au travail"]
[null,"05-Estrie","AB-Abandonné","PI-Projet à l'interne",null,null,null,"2015-2016-2","abandonnée","Climat-municipalités"]
[null,"06-Montréal",null,"AU-Autre",null,null,null,"2016-2017-1",null,"ClimatSol-Plus"]
[null,"07-Outaouais",null,null,null,null,null,"2016-2017-2",null,"Écocamionnage"]
[null,"08-Abitibi-Témiscamingue",null,null,null,null,null,"2017-2018-1",null,"Écoperformance"]
[null,"09-Côte-Nord",null,null,null,null,null,"2017-2018-2",null,"PADTC - Programme d'aide au développement du transport collectif"]
[null,"10-Nord-du-Québec",null,null,null,null,null,"2018-2019-1",null,"PAGASTC - Programme d’aide gouvernementale à l’amélioration des services de transport en commun"]
[null,"11-Gaspésie-Iles-de-la-Madeleine",null,null,null,null,null,"2018-2019-2","Part de financement par le PACC","PAGTCP - Programme d’aide gouvernementale au transport collectif des personnes"]
[null,"12-Chaudières-Appalaches",null,null,null,null,null,"2019-2020-1","Variable","PAGTCR - Programme d'aide gouvernementale au transport collectif régional"]
[null,"13-Laval",null,null,null,null,null,"2019-2020-2",{"$f":"10 & \" %\"","v":"10 %"},"PETMAF - Programme d'aide à l'amélioration de l'efficacité du transport maritime, aérien et ferroviaire en matière de réduction des émissions de GES"]
[null,"14-Lanaudière",null,null,null,null,null,"2020-2021-1",{"$f":"20 & \" %\"","v":"20 %"},"PREGTI - Programme visant la réduction des émissions de GES par le développement du transport intermodal"]
[null,"15-Laurentides",null,null,null,null,null,"2020-2021-2",{"$f":"30 & \" %\"","v":"30 %"},"Prime-Vert"]
[null,"16-Montérégie",null,null,null,null,null,"2021-2022-1",{"$f":"40 & \" %\"","v":"40 %"},"Programme d’aide gouvernementale transitoire en matière de transport routier des personnes"]
[null,"17-Centre-du-Québec",null,null,null,null,null,"2021-2022-2",{"$f":"50 & \" %\"","v":"50 %"},"Programme de compostage pour petites municipalités"]
[null,null,null,null,null,null,null,"2022-2023-1",{"$f":"60 & \" %\"","v":"60 %"},"Programme de coopération climatique internationale"]
[null,null,null,null,null,null,null,"2022-2023-2",{"$f":"70 & \" %\"","v":"70 %"},"Programme de soutien à des projets de démonstration en transport collectif électrique"]
[null,null,null,null,null,null,null,"2023-2024-1",{"$f":"80 & \" %\"","v":"80 %"},"Programme de soutien à l'intégration de l'adaptation aux changements climatiques à la planification municipale"]
[null,null,null,null,null,null,null,"2023-2024-2",{"$f":"90 & \" %\"","v":"90 %"},"Programme de soutien aux municipalités dans la mise en place d'infrastructures de gestion durable des eaux de pluie à la source"]
[null,null,null,null,null,null,null,null,{"$f":"100 & \" %\"","v":"100 %"},"Programme de subventions à l’adaptation des taxis et des autocars interurbains pour le transport des personnes se déplaçant en fauteuil roulant"]
[null,null,null,null,null,null,null,null,null,"Programme de vitrine technologique pour les bâtiments et les solutions innovantes en bois"]
[null,null,null,null,null,null,null,null,null,"Projets de démonstration de taxis électriques"]
[null,null,null,null,null,null,null,null,null,"Promotion de l'électrification des transports"]
[null,null,null,null,null,null,null,null,null,"PTMOBC - Programme de traitement des matières organiques par biométhanisation et compostage"]
[null,null,null,null,null,null,null,null,null,"Rénoclimat-volet Chauffez vert"]
[null,null,null,null,null,null,null,null,null,"Roulez électrique"]
[null,null,null,null,null,null,null,null,null,"Soutien aux essais de fertilisation"]
[null,null,null,null,null,null,null,null,null,"Technoclimat"]
[null,null,null,null,null,null,null,null,null,"Véloce II"]

{"sheet":"Validation","index":3,"n_rows":11,"n_cols":6,"rows_kept":11,"cut":false,"hidden":true,"merged":[[2,1,2,3],[4,1,4,3],[3,2,3,5],[5,1,5,5],[1,1,1,4],[4,4,4,5]]}
[]
[null,{"$f":"Utilitaire!E8","v":"PLAN D'ACTION 2013-2020 SUR LES CHANGEMENTS CLIMATIQUES"}]
[null,{"$f":"\"Action \" & Accueil!D58","v":"Action abandonnée"}]
[null,{"$f":"Accueil!D55","v":"11.1.2"},{"$f":"Accueil!E55","v":"Bilan Carbone"}]
[null,"Ministère porteur:",null,null,{"$f":"Accueil!$D$66","v":"MELCC"}]
[null,"Rapport de validation de la fiche de suivi"]
[]
[]
["Code de couleur","Feuille concernée","no ligne","Description de la problématique","No d'erreur","Commentaires"]
[null,"détail des projets",null,"Aucun projets n'est mentionné dans la fiche. Cette situation est acceptable seulement si l'action n'est pas encore démarrée.",12]
[null,"indicateurs quantitatifs",null,"Aucun indicateur n'est inscrit pour cette action. Acceptable seulement si l'action n'est pas démarée.",20]

{"sheet":"détail des projets","index":4,"n_rows":49,"n_cols":58,"rows_kept":49,"cut":false,"hidden":false,"merged":[[22,5,23,5],[21,1,21,5],[22,2,23,2],[22,4,23,4],[46,1,46,3],[47,1,47,3],[48,1,48,3],[45,1,45,3],[14,1,14,3],[22,1,23,1],[22,3,23,3],[45,27,45,33],[22,6,23,6],[22,12,23,12],[22,24,23,24],[22,8,23,8],[22,11,23,11],[22,7,23,7],[22,29,23,29],[8,7,8,8],[6,7,6,8],[1,1,1,3],[7,7,7,8],[6,9,6,10],[7,9,7,10],[8,9,8,10],[3,2,3,5],[2,1,2,2],[4,1,4,2],[5,1,5,5],[22,56,23,56],[22,57,23,57],[13,9,13,10],[15,9,15,10],[16,9,16,10],[22,27,23,27],[22,28,23,28],[22,30,22,31],[22,25,23,25],[22,32,22,33],[22,10,23,10],[21,13,21,23],[21,27,21,56],[18,4,18,5],[13,7,13,8],[15,7,15,8],[14,9,14,10],[14,7,14,8],[16,7,16,8]]}
[]
[null,"PLAN D'ACTION 2013-2020 SUR LES CHANGEMENTS CLIMATIQUES"]
[null,{"$f":"\"Action \" & Accueil!D58","v":"Action abandonnée"}]
[null,{"$f":"Accueil!D55","v":"11.1.2"},{"$f":"Accueil!E55","v":"Bilan Carbone"}]
[null,"Ministère porteur:",null,{"$f":"Accueil!$D$66","v":"MELCC"}]
[null,"Détails et prévisions des dépenses par projet"]
[]
[]
[]
[]
[]
[]
[]
[]
[]
[]
[]
[]
[null,null,null,{"$f":"Accueil!B74","v":"Informations en date du :"},{"$f":"Accueil!D74","v":"2018-09-30"}]
[null,null,null,null,null,null,null,null,null,null,null,null,null,null,null,null,null,null,null,null,null,null,null,null,null,null,null,null,null,null,null,null,null,null,{"$f":"IF(AND(MID(#REF!,1,9)=AI23,AI24=\"Non Vérifié\"),1,0)","v":{"$error":"#REF!"}},{"$f":"IF(AND(MID(#REF!,1,9)=AJ23,AJ24=\"Non Vérifié\"),1,0)","v":{"$error":"#REF!"}},{"$f":"IF(AND(MID(#REF!,1,9)=AK23,AK24=\"Non Vérifié\"),1,0)","v":{"$error":"#REF!"}},{"$f":"IF(AND(MID(#REF!,1,9)=AL23,AL24=\"Non Vérifié\"),1,0)","v":{"$error":"#REF!"}},{"$f":"IF(AND(MID(#REF!,1,9)=AM23,AM24=\"Non Vérifié\"),1,0)","v":{"$error":"#REF!"}},{"$f":"IF(AND(MID(#REF!,1,9)=AN23,AN24=\"Non Vérifié\"),1,0)","v":{"$error":"#REF!"}},{"$f":"IF(AND(MID(#REF!,1,9)=AO23,AO24=\"Non Vérifié\"),1,0)","v":{"$error":"#REF!"}},{"$f":"IF(AND(MID(#REF!,1,9)=AP23,AP24=\"Non Vérifié\"),1,0)","v":{"$error":"#REF!"}},{"$f":"IF(AND(MID(#REF!,1,9)=AQ23,AQ24=\"Non Vérifié\"),1,0)","v":{"$error":"#REF!"}},{"$f":"IF(AND(MID(#REF!,1,9)=AR23,AR24=\"Non Vérifié\"),1,0)","v":{"$error":"#REF!"}},{"$f":"IF(AND(MID(#REF!,1,9)=AS23,AS24=\"Non Vérifié\"),1,0)","v":{"$error":"#REF!"}},{"$f":"IF(AND(MID(#REF!,1,9)=AT23,AT24=\"Non Vérifié\"),1,0)","v":{"$error":"#REF!"}},{"$f":"IF(AND(MID(#REF!,1,9)=AU23,AU24=\"Non Vérifié\"),1,0)","v":{"$error":"#REF!"}},{"$f":"IF(AND(MID(#REF!,1,9)=AV23,AV24=\"Non Vérifié\"),1,0)","v":{"$error":"#REF!"}},{"$f":"IF(AND(MID(#REF!,1,9)=AW23,AW24=\"Non Vérifié\"),1,0)","v":{"$error":"#REF!"}},{"$f":"IF(AND(MID(#REF!,1,9)=AX23,AX24=\"Non Vérifié\"),1,0)","v":{"$error":"#REF!"}},{"$f":"IF(AND(MID(#REF!,1,9)=AY23,AY24=\"Non Vérifié\"),1,0)","v":{"$error":"#REF!"}},{"$f":"IF(AND(MID(#REF!,1,9)=AZ23,AZ24=\"Non Vérifié\"),1,0)","v":{"$error":"#REF!"}},{"$f":"IF(AND(MID(#REF!,1,9)=BA23,BA24=\"Non Vérifié\"),1,0)","v":{"$error":"#REF!"}},{"$f":"IF(AND(MID(#REF!,1,9)=BB23,BB24=\"Non Vérifié\"),1,0)","v":{"$error":"#REF!"}},{"$f":"IF(AND(MID(#REF!,1,9)=BC23,BC24=\"Non Vérifié\"),1,0)","v":{"$error":"#REF!"}},{"$f":"IF(AND(MID(#REF!,1,9)=BD23,BD24=\"Non Vérifié\"),1,0)","v":{"$error":"#REF!"}}]
[null,null,null,null,null,null,null,null,null,null,null,null,null,null,null,null,null,null,null,null,null,null,null,null,null,null,null,null,null,null,null,null,null,null,{"$f":"IF(AND(MID(#REF!,1,9)=AI23,AI24=\"Vérifié\"),1,0)","v":{"$error":"#REF!"}},{"$f":"IF(AND(MID(#REF!,1,9)=AJ23,AJ24=\"Vérifié\"),1,0)","v":{"$error":"#REF!"}},{"$f":"IF(AND(MID(#REF!,1,9)=AK23,AK24=\"Vérifié\"),1,0)","v":{"$error":"#REF!"}},{"$f":"IF(AND(MID(#REF!,1,9)=AL23,AL24=\"Vérifié\"),1,0)","v":{"$error":"#REF!"}},{"$f":"IF(AND(MID(#REF!,1,9)=AM23,AM24=\"Vérifié\"),1,0)","v":{"$error":"#REF!"}},{"$f":"IF(AND(MID(#REF!,1,9)=AN23,AN24=\"Vérifié\"),1,0)","v":{"$error":"#REF!"}},{"$f":"IF(AND(MID(#REF!,1,9)=AO23,AO24=\"Vérifié\"),1,0)","v":{"$error":"#REF!"}},{"$f":"IF(AND(MID(#REF!,1,9)=AP23,AP24=\"Vérifié\"),1,0)","v":{"$error":"#REF!"}},{"$f":"IF(AND(MID(#REF!,1,9)=AQ23,AQ24=\"Vérifié\"),1,0)","v":{"$error":"#REF!"}},{"$f":"IF(AND(MID(#REF!,1,9)=AR23,AR24=\"Vérifié\"),1,0)","v":{"$error":"#REF!"}},{"$f":"IF(AND(MID(#REF!,1,9)=AS23,AS24=\"Vérifié\"),1,0)","v":{"$error":"#REF!"}},{"$f":"IF(AND(MID(#REF!,1,9)=AT23,AT24=\"Vérifié\"),1,0)","v":{"$error":"#REF!"}},{"$f":"IF(AND(MID(#REF!,1,9)=AU23,AU24=\"Vérifié\"),1,0)","v":{"$error":"#REF!"}},{"$f":"IF(AND(MID(#REF!,1,9)=AV23,AV24=\"Vérifié\"),1,0)","v":{"$error":"#REF!"}},{"$f":"IF(AND(MID(#REF!,1,9)=AW23,AW24=\"Vérifié\"),1,0)","v":{"$error":"#REF!"}},{"$f":"IF(AND(MID(#REF!,1,9)=AX23,AX24=\"Vérifié\"),1,0)","v":{"$error":"#REF!"}},{"$f":"IF(AND(MID(#REF!,1,9)=AY23,AY24=\"Vérifié\"),1,0)","v":{"$error":"#REF!"}},{"$f":"IF(AND(MID(#REF!,1,9)=AZ23,AZ24=\"Vérifié\"),1,0)","v":{"$error":"#REF!"}},{"$f":"IF(AND(MID(#REF!,1,9)=BA23,BA24=\"Vérifié\"),1,0)","v":{"$error":"#REF!"}},{"$f":"IF(AND(MID(#REF!,1,9)=BB23,BB24=\"Vérifié\"),1,0)","v":{"$error":"#REF!"}},{"$f":"IF(AND(MID(#REF!,1,9)=BC23,BC24=\"Vérifié\"),1,0)","v":{"$error":"#REF!"}},{"$f":"IF(AND(MID(#REF!,1,9)=BD23,BD24=\"Vérifié\"),1,0)","v":{"$error":"#REF!"}}]
[null,"DÉTAILS DES PROJETS AUTORISÉS",null,null,null,null,null,null,null,null,null,null,null,"MONTANTS PROVENANT DU PACC 2013-2020 ($)",null,null,null,null,null,null,null,null,null,null,{"$f":"MONTH(#REF!)","v":{"$error":"#REF!"}},null,null,"DÉTAIL DES ÉMISSIONS DE GES RÉDUITES OU ÉVITÉES  (en tonnes CO2 éq.)"]
["No","VOLET OU THÉMATIQUE","NOM DU REQUÉRANT OU DU BÉNÉFICIAIRE","NOM DU PROJET","NOMBRE DE PROJETS","RÉGION ADMINISTRATIVE","MUNICIPALITÉ","STATUT","CLASSIFICATION DU PROJET","MONTANT ENGAGÉ ($)","DATE DE L'ENGAGEMENT","DATE DU DERNIER VERSEMENT (prévu ou réalisé)","BUDGET TOTAL DU PROJET ($)","2013-2014","2014-2015","2015-2016","2016-2017","2017-2018","2018-2019","2019-2020","2020-2021","2021-2022","2022-2023","2023-2024","MONTANT DES DÉPENSES RÉELLES ($)","TOTAL DES DÉPENSES RÉELLES ET PRÉVUES ($)",null,"Type d'émission","émissions rapportées dans l'inventaire","Durée du projet (exemple: durée de vie de l'équipement)","Émissions",null,"Vérifiées",null,"2013-2014","2013-2014","2014-2015","2014-2015","2015-2016","2015-2016","2016-2017","2016-2017","2017-2018","2017-2018","2018-2019","2018-2019","2019-2020","2019-2020","2020-2021","2020-2021","2021-2022","2021-2022","2022-2023","2022-2023","2023-2024","2023-2024","Coût/tonne estimé","Coût/tonne estimé de la dernière année vérifiée"]
[null,null,null,null,null,null,null,null,null,"(convention signée, contrat, lettre de confirmation du ministre ou de son représentant ou lettre d'octroi)",null,null,null,"Réel","Réel","Réel","Réel","Réel","Prévu","Prévu","Prévu","Prévu","Prévu","Prévu",null,null,null,null,null,null,"Réduites","Évitées","Tierce partie","M/O","Vérifié","Non vérifié","Vérifié","Non vérifié","Vérifié","Non vérifié","Vérifié","Non vérifié","Vérifié","Non vérifié","Vérifié","Non vérifié","Vérifié","Non vérifié","Vérifié","Non vérifié","Vérifié","Non vérifié","Vérifié","Non vérifié","Vérifié","Non vérifié"]
[1,null,null,null,null,null,null,null,null,null,null,null,null,null,null,null,null,null,null,null,null,null,null,null,{"$f":"SUM(N25:R25)","v":0},{"$f":"SUM(N25:X25)","v":0},null,null,null,null,null,null,null,null,null,null,null,null,null,null,null,null,null,null,null,null,null,null,null,null,null,null,null,null,null,null,null,{"$f":"IF(SUM(AI25:BD25)=0,0,(Y25/SUMIF($AI$20:$BD$20,\"1\",AI25:BD25)))","v":0}]
[2,null,null,null,null,null,null,null,null,null,null,null,null,null,null,null,null,null,null,null,null,null,null,null,{"$f":"SUM(N26:R26)","v":0},{"$f":"SUM(N26:X26)","v":0},null,null,null,null,null,null,null,null,null,null,null,null,null,null,null,null,null,null,null,null,null,null,null,null,null,null,null,null,null,null,null,0]
[3,null,null,null,null,null,null,null,null,null,null,null,null,null,null,null,null,null,null,null,null,null,null,null,0,{"$f":"SUM(N27:X27)","v":0},null,null,null,null,null,null,null,null,null,null,null,null,null,null,null,null,null,null,null,null,null,null,null,null,null,null,null,null,null,null,null,0]
[4,null,null,null,null,null,null,null,null,null,null,null,null,null,null,null,null,null,null,null,null,null,null,null,0,0,null,null,null,null,null,null,null,null,null,null,null,null,null,null,null,null,null,null,null,null,null,null,null,null,null,null,null,null,null,null,null,0]
[5,null,null,null,null,null,null,null,null,null,null,null,null,null,null,null,null,null,null,null,null,null,null,null,0,0,null,null,null,null,null,null,null,null,null,null,null,null,null,null,null,null,null,null,null,null,null,null,null,null,null,null,null,null,null,null,null,0]
[6,null,null,null,null,null,null,null,null,null,null,null,null,null,null,null,null,null,null,null,null,null,null,null,0,0,null,null,null,null,null,null,null,null,null,null,null,null,null,null,null,null,null,null,null,null,null,null,null,null,null,null,null,null,null,null,null,0]
[7,null,null,null,null,null,null,null,null,null,null,null,null,null,null,null,null,null,null,null,null,null,null,null,0,0,null,null,null,null,null,null,null,null,null,null,null,null,null,null,null,null,null,null,null,null,null,null,null,null,null,null,null,null,null,null,null,0]
[8,null,null,null,null,null,null,null,null,null,null,null,null,null,null,null,null,null,null,null,null,null,null,null,0,0,null,null,null,null,null,null,null,null,null,null,null,null,null,null,null,null,null,null,null,null,null,null,null,null,null,null,null,null,null,null,null,0]
[9,null,null,null,null,null,null,null,null,null,null,null,null,null,null,null,null,null,null,null,null,null,null,null,0,0,null,null,null,null,null,null,null,null,null,null,null,null,null,null,null,null,null,null,null,null,null,null,null,null,null,null,null,null,null,null,null,0]
[10,null,null,null,null,null,null,null,null,null,null,null,null,null,null,null,null,null,null,null,null,null,null,null,0,0,null,null,null,null,null,null,null,null,null,null,null,null,null,null,null,null,null,null,null,null,null,null,null,null,null,null,null,null,null,null,null,0]
[11,null,null,null,null,null,null,null,null,null,null,null,null,null,null,null,null,null,null,null,null,null,null,null,0,0,null,null,null,null,null,null,null,null,null,null,null,null,null,null,null,null,null,null,null,null,null,null,null,null,null,null,null,null,null,null,null,0]
[12,null,null,null,null,null,null,null,null,null,null,null,null,null,null,null,null,null,null,null,null,null,null,null,0,0,null,null,null,null,null,null,null,null,null,null,null,null,null,null,null,null,null,null,null,null,null,null,null,null,null,null,null,null,null,null,null,0]
[13,null,null,null,null,null,null,null,null,null,null,null,null,null,null,null,null,null,null,null,null,null,null,null,0,0,null,null,null,null,null,null,null,null,null,null,null,null,null,null,null,null,null,null,null,null,null,null,null,null,null,null,null,null,null,null,null,{"$f":"IF(SUM(AI37:BD37)=0,0,(Y37/SUMIF($AI$20:$BD$20,\"1\",AI37:BD37)))","v":0}]
[14,null,null,null,null,null,null,null,null,null,null,null,null,null,null,null,null,null,null,null,null,null,null,null,0,0,null,null,null,null,null,null,null,null,null,null,null,null,null,null,null,null,null,null,null,null,null,null,null,null,null,null,null,null,null,null,null,{"$f":"IF(SUM(AI38:BD38)=0,0,(Y38/SUMIF($AI$20:$BD$20,\"1\",AI38:BD38)))","v":0}]
[15,null,null,null,null,null,null,null,null,null,null,null,null,null,null,null,null,null,null,null,null,null,null,null,{"$f":"SUM(N39:R39)","v":0},0,null,null,null,null,null,null,null,null,null,null,null,null,null,null,null,null,null,null,null,null,null,null,null,null,null,null,null,null,null,null,null,{"$f":"IF(SUM(AI39:BD39)=0,0,(Y39/SUMIF($AI$20:$BD$20,\"1\",AI39:BD39)))","v":0}]
[16,null,null,null,null,null,null,null,null,null,null,null,null,null,null,null,null,null,null,null,null,null,null,null,0,0,null,null,null,null,null,null,null,null,null,null,null,null,null,null,null,null,null,null,null,null,null,null,null,null,null,null,null,null,null,null,null,{"$f":"IF(SUM(AI40:BD40)=0,0,(Y40/SUMIF($AI$20:$BD$20,\"1\",AI40:BD40)))","v":0}]
[17,null,null,null,null,null,null,null,null,null,null,null,null,null,null,null,null,null,null,null,null,null,null,null,0,0,null,null,null,null,null,null,null,null,null,null,null,null,null,null,null,null,null,null,null,null,null,null,null,null,null,null,null,null,null,null,null,{"$f":"IF(SUM(AI41:BD41)=0,0,(Y41/SUMIF($AI$20:$BD$20,\"1\",AI41:BD41)))","v":0}]
[18,null,null,null,null,null,null,null,null,null,null,null,null,null,null,null,null,null,null,null,null,null,null,null,0,{"$f":"SUM(N42:X42)","v":0},null,null,null,null,null,null,null,null,null,null,null,null,null,null,null,null,null,null,null,null,null,null,null,null,null,null,null,null,null,null,null,{"$f":"IF(SUM(AI42:BD42)=0,0,(Y42/SUMIF($AI$20:$BD$20,\"1\",AI42:BD42)))","v":0}]
[19,null,null,null,null,null,null,null,null,null,null,null,null,null,null,null,null,null,null,null,null,null,null,null,0,{"$f":"SUM(N43:X43)","v":0},null,null,null,null,null,null,null,null,null,null,null,null,null,null,null,null,null,null,null,null,null,null,null,null,null,null,null,null,null,null,null,{"$f":"IF(SUM(AI43:BD43)=0,0,(Y43/SUMIF($AI$20:$BD$20,\"1\",AI43:BD43)))","v":0}]
[20,null,null,null,null,null,null,null,null,null,null,null,null,null,null,null,null,null,null,null,null,null,null,null,0,{"$f":"SUM(N44:X44)","v":0},null,null,null,null,null,null,null,null,null,null,null,null,null,null,null,null,null,null,null,null,null,null,null,null,null,null,null,null,null,null,null,{"$f":"IF(SUM(AI44:BD44)=0,0,(Y44/SUMIF($AI$20:$BD$20,\"1\",AI44:BD44)))","v":0}]
["tot"]
[null,"TOTAL DES DÉPENSES DE PROJET ($)",null,null,null,null,null,null,null,{"$f":"SUM(J25:J45)","v":0},null,null,null,{"$f":"SUM(N25:N45)","v":0},0,0,0,0,0,0,0,0,0,0,0,0,null,"TOTAL (tonnes CO2 éq.)",null,null,null,null,null,null,{"$f":"SUM(AI25:AI45)","v":0},0,0,0,0,0,0,0,0,0,0,0,0,0,0,0,0,0,0,0,0,0,null,0]
[null,"TOTAL CONTRATS FONCTIONNEMENT ($)",null,null,null,null,null,null,null,{"$f":"SUMIF($I$25:$I45,\"CF-Contrat fonctionnement\",J25:J45)+SUMIF($I$25:$I45,\"CP-Contrat service professionnel\",J25:J45)+SUMIF($I$25:$I45,\"CT-Contrat service technique\",J25:J45)","v":0},null,null,null,{"$f":"SUMIF($I$25:$I45,\"CF-Contrat fonctionnement\",N25:N45)+SUMIF($I$25:$I45,\"CP-Contrat service professionnel\",N25:N45)+SUMIF($I$25:$I45,\"CT-Contrat service technique\",N25:N45)","v":0},{"$f":"SUMIF($I$25:$I45,\"CF-Contrat fonctionnement\",O25:O45)+SUMIF($I$25:$I45,\"CP-Contrat service professionnel\",O25:O45)+SUMIF($I$25:$I45,\"CT-Contrat service technique\",O25:O45)","v":0},{"$f":"SUMIF($I$25:$I45,\"CF-Contrat fonctionnement\",P25:P45)+SUMIF($I$25:$I45,\"CP-Contrat service professionnel\",P25:P45)+SUMIF($I$25:$I45,\"CT-Contrat service technique\",P25:P45)","v":0},{"$f":"SUMIF($I$25:$I45,\"CF-Contrat fonctionnement\",Q25:Q45)+SUMIF($I$25:$I45,\"CP-Contrat service professionnel\",Q25:Q45)+SUMIF($I$25:$I45,\"CT-Contrat service technique\",Q25:Q45)","v":0},{"$f":"SUMIF($I$25:$I45,\"CF-Contrat fonctionnement\",R25:R45)+SUMIF($I$25:$I45,\"CP-Contrat service professionnel\",R25:R45)+SUMIF($I$25:$I45,\"CT-Contrat service technique\",R25:R45)","v":0},{"$f":"SUMIF($I$25:$I45,\"CF-Contrat fonctionnement\",S25:S45)+SUMIF($I$25:$I45,\"CP-Contrat service professionnel\",S25:S45)+SUMIF($I$25:$I45,\"CT-Contrat service technique\",S25:S45)","v":0},{"$f":"SUMIF($I$25:$I45,\"CF-Contrat fonctionnement\",T25:T45)+SUMIF($I$25:$I45,\"CP-Contrat service professionnel\",T25:T45)+SUMIF($I$25:$I45,\"CT-Contrat service technique\",T25:T45)","v":0},{"$f":"SUMIF($I$25:$I45,\"CF-Contrat fonctionnement\",U25:U45)+SUMIF($I$25:$I45,\"CP-Contrat service professionnel\",U25:U45)+SUMIF($I$25:$I45,\"CT-Contrat service technique\",U25:U45)","v":0},{"$f":"SUMIF($I$25:$I45,\"CF-Contrat fonctionnement\",V25:V45)+SUMIF($I$25:$I45,\"CP-Contrat service professionnel\",V25:V45)+SUMIF($I$25:$I45,\"CT-Contrat service technique\",V25:V45)","v":0},{"$f":"SUMIF($I$25:$I45,\"CF-Contrat fonctionnement\",W25:W45)+SUMIF($I$25:$I45,\"CP-Contrat service professionnel\",W25:W45)+SUMIF($I$25:$I45,\"CT-Contrat service technique\",W25:W45)","v":0},{"$f":"SUMIF($I$25:$I45,\"CF-Contrat fonctionnement\",X25:X45)+SUMIF($I$25:$I45,\"CP-Contrat service professionnel\",X25:X45)+SUMIF($I$25:$I45,\"CT-Contrat service technique\",X25:X45)","v":0},{"$f":"SUMIF($I$25:$I45,\"CF-Contrat fonctionnement\",Y25:Y45)+SUMIF($I$25:$I45,\"CP-Contrat service professionnel\",Y25:Y45)+SUMIF($I$25:$I45,\"CT-Contrat service technique\",Y25:Y45)","v":0},{"$f":"SUMIF($I$25:$I45,\"CF-Contrat fonctionnement\",Z25:Z45)+SUMIF($I$25:$I45,\"CP-Contrat service professionnel\",Z25:Z45)+SUMIF($I$25:$I45,\"CT-Contrat service technique\",Z25:Z45)","v":0}]
[null,"TOTAL CONTRATS IMMOBILISATION ($)",null,null,null,null,null,null,null,{"$f":"SUMIF(I25:I45,\"CI-Contrat immobilisation\",J25:J45)","v":0},null,null,null,{"$f":"SUMIF($I$25:$I45,\"CI-Contrat immobilisation\",N25:N45)","v":0},{"$f":"SUMIF($I$25:$I45,\"CI-Contrat immobilisation\",O25:O45)","v":0},{"$f":"SUMIF($I$25:$I45,\"CI-Contrat immobilisation\",P25:P45)","v":0},{"$f":"SUMIF($I$25:$I45,\"CI-Contrat immobilisation\",Q25:Q45)","v":0},{"$f":"SUMIF($I$25:$I45,\"CI-Contrat immobilisation\",R25:R45)","v":0},{"$f":"SUMIF($I$25:$I45,\"CI-Contrat immobilisation\",S25:S45)","v":0},{"$f":"SUMIF($I$25:$I45,\"CI-Contrat immobilisation\",T25:T45)","v":0},{"$f":"SUMIF($I$25:$I45,\"CI-Contrat immobilisation\",U25:U45)","v":0},{"$f":"SUMIF($I$25:$I45,\"CI-Contrat immobilisation\",V25:V45)","v":0},{"$f":"SUMIF($I$25:$I45,\"CI-Contrat immobilisation\",W25:W45)","v":0},{"$f":"SUMIF($I$25:$I45,\"CI-Contrat immobilisation\",X25:X45)","v":0},{"$f":"SUMIF($I$25:$I45,\"CI-Contrat immobilisation\",Y25:Y45)","v":0},{"$f":"SUMIF($I$25:$I45,\"CI-Contrat immobilisation\",Z25:Z45)","v":0}]
[null,"TOTAL DES SUBVENTIONS ($)",null,null,null,null,null,null,null,{"$f":"SUMIF(I25:I45,\"SU-Subvention\",J25:J45)","v":0},null,null,null,{"$f":"SUMIF($I$25:$I48,\"SU-Subvention\",N25:N36)","v":0},{"$f":"SUMIF($I$25:$I48,\"SU-Subvention\",O25:O36)","v":0},{"$f":"SUMIF($I$25:$I48,\"SU-Subvention\",P25:P36)","v":0},{"$f":"SUMIF($I$25:$I48,\"SU-Subvention\",Q25:Q36)","v":0},{"$f":"SUMIF($I$25:$I48,\"SU-Subvention\",R25:R36)","v":0},{"$f":"SUMIF($I$25:$I48,\"SU-Subvention\",S25:S36)","v":0},{"$f":"SUMIF($I$25:$I48,\"SU-Subvention\",T25:T36)","v":0},{"$f":"SUMIF($I$25:$I48,\"SU-Subvention\",U25:U36)","v":0},{"$f":"SUMIF($I$25:$I48,\"SU-Subvention\",V25:V36)","v":0},{"$f":"SUMIF($I$25:$I48,\"SU-Subvention\",W25:W36)","v":0},{"$f":"SUMIF($I$25:$I48,\"SU-Subvention\",X25:X36)","v":0},{"$f":"SUMIF($I$25:$I48,\"SU-Subvention\",Y25:Y36)","v":0},{"$f":"SUMIF($I$25:$I48,\"SU-Subvention\",Z25:Z36)","v":0}]

{"sheet":"indicateurs quantitatifs","index":5,"n_rows":45,"n_cols":44,"rows_kept":45,"cut":false,"hidden":false,"merged":[[1,1,1,4],[2,1,2,3],[3,3,3,6],[4,1,4,3],[22,19,23,19],[22,3,23,3],[22,4,23,5],[21,1,21,7],[22,1,23,1],[22,2,23,2],[1,8,5,12],[24,6,24,7],[22,6,23,7],[5,1,5,6],[24,4,24,5],[30,4,30,5],[28,4,28,5],[25,4,25,5],[27,4,27,5],[26,4,26,5],[25,6,25,7],[30,6,30,7],[28,6,28,7],[26,6,26,7],[27,6,27,7],[18,4,18,5],[43,4,43,5],[43,6,43,7],[41,4,41,5],[41,6,41,7],[42,4,42,5],[42,6,42,7],[38,4,38,5],[38,6,38,7],[39,4,39,5],[40,4,40,5],[40,6,40,7],[39,6,39,7],[37,4,37,5],[29,6,29,7],[37,6,37,7],[32,6,32,7],[33,6,33,7],[34,6,34,7],[35,6,35,7],[31,4,31,5],[34,4,34,5],[32,4,32,5],[36,4,36,5],[36,6,36,7],[35,4,35,5],[31,6,31,7],[33,4,33,5],[29,4,29,5]]}
[]
[null,"PLAN D'ACTION 2013-2020 SUR LES CHANGEMENTS CLIMATIQUES"]
[null,{"$f":"\"Action \" & Accueil!D58","v":"Action abandonnée"}]
[null,{"$f":"Accueil!D55","v":"11.1.2"},null,{"$f":"Accueil!E55","v":"Bilan Carbone"}]
[null,"Ministère porteur:",null,null,{"$f":"Accueil!$D$66","v":"MELCC"}]
[null,"Indicateurs quantitatifs"]
[]
[]
[]
[]
[]
[]
[]
[]
[]
[]
[]
[]
[null,null,null,{"$f":"Accueil!B74","v":"Informations en date du :"},{"$f":"Accueil!D74","v":"2018-09-30"}]
[]
[]
[null,"SECTION 9 - INDICATEURS DE PERFORMANCE QUANTITATIFS ",null,null,null,null,null,null,{"$f":"IF(OR(AND(MONTH(#REF!)>6,YEAR(#REF!)=VALUE(MID(I23,1,4))),YEAR(#REF!)>VALUE(MID(I23,1,4))),\"Réel\",\"Prévu\")","v":{"$error":"#REF!"}},{"$f":"IF(OR(AND(MONTH(#REF!)>6,YEAR(#REF!)=VALUE(MID(J23,1,4))),YEAR(#REF!)>VALUE(MID(J23,1,4))),\"Réel\",\"Prévu\")","v":{"$error":"#REF!"}},{"$f":"IF(OR(AND(MONTH(#REF!)>6,YEAR(#REF!)=VALUE(MID(K23,1,4))),YEAR(#REF!)>VALUE(MID(K23,1,4))),\"Réel\",\"Prévu\")","v":{"$error":"#REF!"}},{"$f":"IF(OR(AND(MONTH(#REF!)>6,YEAR(#REF!)=VALUE(MID(L23,1,4))),YEAR(#REF!)>VALUE(MID(L23,1,4))),\"Réel\",\"Prévu\")","v":{"$error":"#REF!"}},{"$f":"IF(OR(AND(MONTH(#REF!)>6,YEAR(#REF!)=VALUE(MID(M23,1,4))),YEAR(#REF!)>VALUE(MID(M23,1,4))),\"Réel\",\"Prévu\")","v":{"$error":"#REF!"}},{"$f":"IF(OR(AND(MONTH(#REF!)>6,YEAR(#REF!)=VALUE(MID(N23,1,4))),YEAR(#REF!)>VALUE(MID(N23,1,4))),\"Réel\",\"Prévu\")","v":{"$error":"#REF!"}},{"$f":"IF(OR(AND(MONTH(#REF!)>6,YEAR(#REF!)=VALUE(MID(O23,1,4))),YEAR(#REF!)>VALUE(MID(O23,1,4))),\"Réel\",\"Prévu\")","v":{"$error":"#REF!"}},{"$f":"IF(OR(AND(MONTH(#REF!)>6,YEAR(#REF!)=VALUE(MID(P23,1,4))),YEAR(#REF!)>VALUE(MID(P23,1,4))),\"Réel\",\"Prévu\")","v":{"$error":"#REF!"}},{"$f":"IF(OR(AND(MONTH(#REF!)>6,YEAR(#REF!)=VALUE(MID(Q23,1,4))),YEAR(#REF!)>VALUE(MID(Q23,1,4))),\"Réel\",\"Prévu\")","v":{"$error":"#REF!"}},{"$f":"IF(OR(AND(MONTH(#REF!)>6,YEAR(#REF!)=VALUE(MID(R23,1,4))),YEAR(#REF!)>VALUE(MID(R23,1,4))),\"Réel\",\"Prévu\")","v":{"$error":"#REF!"}},{"$f":"IF(OR(AND(MONTH(#REF!)>6,YEAR(#REF!)=VALUE(MID(S23,1,4))),YEAR(#REF!)>VALUE(MID(S23,1,4))),\"Réel\",\"Prévu\")","v":{"$error":"#REF!"}},{"$f":"MONTH(#REF!)","v":{"$error":"#REF!"}}]
[null,"ANNÉE PRÉVUE D'ATTEINTE DE LA CIBLE","CIBLE","UNITÉ DE MESURE","DESCRIPTION DE L'INDICATEUR",null,"TYPE D'INDICATEUR",null,"2013-2014","2014-2015","2015-2016","2016-2017","2017-2018","2018-2019","2019-2020","2020-2021","2021-2022","2022-2023","2023-2024","RÉSULTAT À COMPARER AVEC LA CIBLE"]
[null,null,null,null,null,null,null,null,"Réel","Réel","Réel","Réel","Réel","Réel","Réel","Réel","Réel","Réel","Réel"]
[1]
[2]
[3]
[4]
[5]
[6]
[7]
[8]
[9]
[10]
[11]
[12]
[13]
[14]
[15]
[16]
[17]
[18]
[19]
[20]
["tot",null,null,null,null,null,null,null,null,null,null,null,null,null,null,null,null,null,null,null,null,null,null,null,null,null,null,null,null,null,null,null,null,null,null,null,null,null,null,null,null,null,null,false]

{"sheet":"Commentaires","index":6,"n_rows":33,"n_cols":20,"rows_kept":33,"cut":false,"hidden":false,"merged":[[1,1,1,3],[3,2,3,5],[5,1,5,5],[34,14,34,15],[34,16,34,17],[29,14,29,15],[29,16,29,17],[28,16,28,17],[31,16,31,17],[32,16,32,17],[31,14,31,15],[32,14,32,15],[30,14,30,15],[30,16,30,17],[33,14,33,15],[33,16,33,17],[34,1,34,11],[24,12,24,13],[25,12,25,13],[26,12,26,13],[27,12,27,13],[29,12,29,13],[34,12,34,13],[25,1,25,11],[31,1,31,11],[32,1,32,11],[30,1,30,11],[30,12,30,13],[33,12,33,13],[33,1,33,11],[31,12,31,13],[32,12,32,13],[23,16,23,17],[23,1,23,11],[23,12,23,13],[29,1,29,11],[27,1,27,11],[28,12,28,13],[28,1,28,11],[28,14,28,15],[25,16,25,17],[26,14,26,15],[26,16,26,17],[27,14,27,15],[27,16,27,17],[24,16,24,17],[24,14,24,15],[24,1,24,11],[4,1,4,2],[26,1,26,11],[23,14,23,15],[25,14,25,15],[2,1,2,2]]}
[]
[null,{"$f":"Utilitaire!E8","v":"PLAN D'ACTION 2013-2020 SUR LES CHANGEMENTS CLIMATIQUES"},null,null,null,null,null,null,null,null,null,null,null,null,null,null,null,null,null,"COF"]
[null,{"$f":"\"Action \" & Accueil!D58","v":"Action abandonnée"},null,null,null,null,null,null,null,null,null,null,null,null,null,null,null,null,null,"frais"]
[null,{"$f":"Accueil!D55","v":"11.1.2"},{"$f":"Accueil!E55","v":"Bilan Carbone"},null,null,null,null,null,null,null,null,null,null,null,null,null,null,null,null,"ETC"]
[null,"Ministère porteur:",null,{"$f":"Accueil!$D$66","v":"MELCC"},null,null,null,null,null,null,null,null,null,null,null,null,null,null,null,"détail des projets"]
[null,"Commentaires",null,null,null,null,null,null,null,null,null,null,null,null,null,null,null,null,null,"détail des projets (GES)"]
[null,null,null,null,null,null,null,null,null,null,null,null,null,null,null,null,null,null,null,"bilan GES"]
[null,null,null,null,null,null,null,null,null,null,null,null,null,null,null,null,null,null,null,"Indicateurs"]
[null,null,null,null,null,null,null,null,null,null,null,null,null,null,null,null,null,null,null,"Toutes-Autre"]
[]
[]
[null,null,null,null,null,null,null,null,null,null,null,null,null,null,null,null,null,null,null,"2013-2014"]
[null,null,null,null,null,null,null,null,null,null,null,null,null,null,null,null,null,null,null,"2014-2015"]
[null,null,null,null,null,null,null,null,null,null,null,null,null,null,null,null,null,null,null,"2015-2016"]
[null,null,null,null,null,null,null,null,null,null,null,null,null,null,null,null,null,null,null,"2016-2017"]
[null,null,null,null,null,null,null,null,null,null,null,null,null,null,null,null,null,null,null,"2017-2018"]
[]
[]
[]
[]
[]
[]
[null,null,null,null,null,null,null,null,null,null,null,null,null,null,null,null,null,null,null,"2018-2019"]
[null,"COMMENTAIRES ",null,null,null,null,null,null,null,null,null,null,"Section concernée",null,"Année",null,"Exercice",null,null,"2019-2020"]
[null,"Action arrêtée. Demande de transfert d'une somme de 145 k$ vers l’action 11.1.3 qui est gérée par TEQ.",null,null,null,null,null,null,null,null,null,null,null,null,null,null,null,null,null,"2020-2021"]
[null,null,null,null,null,null,null,null,null,null,null,null,null,null,null,null,null,null,null,"2021-2022"]
[null,null,null,null,null,null,null,null,null,null,null,null,null,null,null,null,null,null,null,"2022-2023"]
[null,null,null,null,null,null,null,null,null,null,null,null,null,null,null,null,null,null,null,"2023-2024"]
[]
[]
[]
[null,null,null,null,null,null,null,null,null,null,null,null,null,null,null,null,null,null,null,"juin"]
[null,null,null,null,null,null,null,null,null,null,null,null,null,null,null,null,null,null,null,"décembre"]